lending/lending_fUSD_20250409
["ID","MTS","AMOUNT","RATE_DAILY","PERIOD"]
[357568699,1744180246700,-500.0,0.000199,7]
[357568700,1744180246710,-9999.99,0.000199,2]
[357568701,1744180246721,-17706.49066097,0.000199,2]
[357568702,1744180246730,-1208.69397543,0.000199,2]
[357568703,1744180246740,-640.21776484,0.000199,2]
[357568704,1744180246750,-170.0988666,0.0001999,2]
[357568705,1744180246761,-170.0988666,0.0001999,2]
[357568706,1744180246771,-170.0988666,0.0001999,2]
[357568707,1744180246780,-96499.62603461,0.0002,2]
[357568708,1744180246792,-56979.91264413,0.0002,2]
[357568709,1744180246805,-45707.421,0.0002,2]
[357568710,1744180246817,-27657.16378,0.0002,2]
[357568711,1744180246829,-20590.70074111,0.0002,2]
[357568712,1744180246840,-58224.02110221,0.0002,2]
[357568713,1744180338609,465.52331498,0.00014999,2]
[357568714,1744180488728,-863.118621,0.00019701,2]
[357568715,1744180488753,-534.459,0.000198,2]
[357568716,1744180488779,-184.31635816,0.000199,2]
[357568717,1744180488809,-250.0,0.000199,2]
[357568718,1744180488830,-164.01206167,0.000199,3]
[357568719,1744180488854,-250.0,0.0001996,2]
[357568720,1744180488875,-436.2434021,0.0001999,2]
[357568721,1744180488896,-3163.75129266,0.0001999,2]
[357568722,1744180488920,-6776725.55179432,0.0002,2]
[357568723,1744180488943,-8027.89927503,0.0002,2]
[357568724,1744180488964,-511.23,0.0002,2]
[357568725,1744180488986,-151.77,0.0002,2]
[357568726,1744180489007,-151.77,0.0002,2]
[357568727,1744180489028,-151.77,0.0002,2]
[357568728,1744180489052,-151.77,0.0002,2]
[357568729,1744180489074,-151.77,0.0002,2]
[357568730,1744180489095,-151.77,0.0002,2]
[357568731,1744180489116,-151.77,0.0002,2]
[357568732,1744180489138,-151.77,0.0002,2]
[357568733,1744180489160,-151.77,0.0002,2]
[357568734,1744180489181,-151.77,0.0002,2]
[357568735,1744180489203,-151.77,0.0002,2]
[357568736,1744180489224,-151.77,0.0002,2]
[357568737,1744180489245,-151.77,0.0002,2]
[357568738,1744180489267,-151.77,0.0002,2]
[357568739,1744180489290,-151.77,0.0002,2]
[357568740,1744180489311,-151.77,0.0002,2]
[357568741,1744180489332,-151.77,0.0002,2]
[357568742,1744180489353,-151.77,0.0002,2]
[357568743,1744180489374,-151.77,0.0002,2]
[357568744,1744180489396,-151.77,0.0002,2]
[357568745,1744180518200,150.0,0.0002,2]
[357568746,1744180578641,200.0,0.0002,2]
[357568747,1744180583871,1240.0342,0.000199,2]
[357568748,1744180587501,539.7332,0.0002893,43]
[357568749,1744180587552,539.7332,0.0002926,43]
[357568750,1744180587671,539.7332,0.0002989,45]
[357568754,1744180627048,291.7949073,0.00043736,30]
[357568755,1744180629203,20348.98399506,0.000199,2]
[357568756,1744180635200,200.0,0.00043736,30]
[357568757,1744180636335,207.4,0.00043736,30]
[357568758,1744180637003,215.0738,0.00043736,30]
[357568759,1744180637645,223.0315306,0.00043736,30]
[357568760,1744180638813,231.28369723,0.00043736,30]
[357568761,1744180639988,239.84119403,0.00043736,30]
[357568762,1744180641252,239.84119403,0.00043736,30]
[357568765,1744180772917,2089.82701544,0.000145,2]
[357568766,1744180788091,43060.44,0.00043736,30]
[357568768,1744180893278,539.7332,0.0002506,34]
[357568769,1744180893351,539.7332,0.0002568,36]
[357568770,1744180893413,539.7332,0.0002537,35]
[357568776,1744181090447,-776.432753,0.000198,2]
[357568777,1744181090474,-125690.90668906,0.000199,2]
[357568778,1744181090487,-776.432753,0.000199,2]
[357568779,1744181090499,-86259.89996288,0.000199,2]
[357568780,1744181090508,-250.0,0.00019955,2]
[357568782,1744181141668,-189.598454,0.0001991,2]
[357568783,1744181141696,-362.67879713,0.0002001,2]
[357568784,1744181151138,-1621.09075983,0.000207,2]
[357568785,1744181151160,-300.0,0.00020999,2]
[357568786,1744181151181,-267.58166541,0.00021,2]
[357568788,1744181158082,-2087.29904477,0.00021,2]
[357568789,1744181160789,-17645.11928982,0.00021,2]
[357568790,1744181160817,-11802.60345905,0.00021,2]
[357568793,1744181214107,-254.75246441,0.00020895,2]
[357568796,1744181233187,-174.89190759,0.00020895,2]
[357568797,1744181233208,-144.17873965,0.00021,2]
[357568799,1744181236098,-1703.05338772,0.00021,2]
[357568809,1744181346384,-163.49,0.00035671,120]
[357568810,1744181346423,-255.6205131,0.000372,103]
[357568811,1744181346459,-255.62051307,0.000372,103]
[357568812,1744181346496,-255.62051307,0.000372,103]
[357568813,1744181346531,-255.62051307,0.000372,103]
[357568814,1744181346565,-326.78755151,0.000383,120]
[357568815,1744181346674,-500.0,0.00038356,120]
[357568816,1744181346729,-2016.07555932,0.00038356,30]
[357568817,1744181346782,-284.87623066,0.0003863,120]
[357568818,1744181346960,-163.49,0.00040149,120]
[357568819,1744181347056,-167.82506,0.00041088,120]
[357568820,1744181347097,-503.59250568,0.00041095,120]
[357568821,1744181347141,-166.06975217,0.00041095,30]
[357568822,1744181347184,-7740.15261636,0.0004125,120]
[357568823,1744181347253,-1731.31,0.000417,60]
[357568824,1744181347287,-348.14,0.00041708,30]
[357568825,1744181347322,-255.62051307,0.000419,120]
[357568826,1744181347372,-80600.0,0.00041998,120]
[357568827,1744181347412,-200.0,0.00042,120]
[357568828,1744181347446,-413.42,0.00042,120]
[357568829,1744181347480,-237.89,0.00042,120]
[357568830,1744181347516,-274.22,0.00042,120]
[357568831,1744181347555,-699.53,0.00042,120]
[357568832,1744181347594,-4718.1,0.00042,120]
[357568833,1744181347634,-1304.99,0.00042,120]
[357568834,1744181347672,-61618.52004511,0.00042191,30]
[357568835,1744181347756,-1664336.14672391,0.000428,120]
[357568836,1744181347792,-150.0,0.000429,120]
[357568837,1744181347827,-2500.0,0.00043,30]
[357568838,1744181347862,-183.05,0.00043,120]
[357568839,1744181347896,-1933.36,0.00043,60]
[357568840,1744181347930,-252.0,0.00043,90]
[357568841,1744181347965,-1731.31,0.00043,60]
[357568842,1744181348012,-177.0,0.00043151,90]
[357568843,1744181348060,-2000.0,0.00043288,30]
[357568844,1744181348098,-2000.0,0.00043288,30]
[357568845,1744181348137,-2000.0,0.00043288,30]
[357568846,1744181348174,-2000.0,0.00043288,30]
[357568847,1744181348209,-2000.0,0.00043288,30]
[357568848,1744181348244,-203.606708,0.00043455,120]
[357568849,1744181348278,-150.0,0.000435,30]
[357568850,1744181348313,-216.0,0.000435,30]
[357568851,1744181348348,-1000.0,0.000435,30]
[357568852,1744181348388,-156.68,0.000435,36]
[357568853,1744181348428,-156.68,0.000435,36]
[357568854,1744181348466,-156.68,0.000435,36]
[357568855,1744181348505,-156.68,0.000435,36]
[357568856,1744181348544,-156.68,0.000435,36]
[357568857,1744181348583,-156.68,0.000435,36]
[357568858,1744181348621,-156.68,0.000435,36]
[357568859,1744181348661,-156.68,0.000435,36]
[357568860,1744181348699,-156.68,0.000435,36]
[357568861,1744181348738,-156.68,0.000435,36]
[357568862,1744181348775,-156.68,0.000435,36]
[357568863,1744181348814,-156.68,0.000435,36]
[357568864,1744181348848,-284.05,0.00043507,30]
[357568865,1744181348884,-2000.0,0.00043507,30]
[357568866,1744181348920,-2000.0,0.00043507,30]
[357568867,1744181348956,-2000.0,0.00043507,30]
[357568868,1744181348992,-2000.0,0.00043507,30]
[357568869,1744181349030,-2000.0,0.00043507,30]
[357568870,1744181349068,-1000.0,0.00043516,120]
[357568871,1744181349107,-1000.0,0.00043516,120]
[357568872,1744181349143,-1500.0,0.00043516,30]
[357568873,1744181349180,-1163.0,0.00043517,30]
[357568874,1744181349215,-1791.3,0.00043535,30]
[357568875,1744181349264,-500.0,0.0004366,30]
[357568876,1744181349301,-2990.0,0.00043689,30]
[357568877,1744181349339,-2000.0,0.00043726,30]
[357568878,1744181349376,-990.0,0.00043733,30]
[357568879,1744181349411,-165.27,0.00043735,30]
[357568880,1744181349450,-2000.0,0.00043753,30]
[357568881,1744181349488,-2000.0,0.00043781,30]
[357568882,1744181349525,-2000.0,0.00043808,30]
[357568883,1744181349568,-1022.85415159,0.00043835,120]
[357568884,1744181349607,-2000.0,0.00043836,30]
[357568885,1744181349642,-500.0,0.00043836,120]
[357568886,1744181349678,-500.0,0.00043836,120]
[357568887,1744181349715,-500.0,0.00043836,120]
[357568888,1744181349751,-500.0,0.00043836,120]
[357568889,1744181349787,-500.0,0.00043836,120]
[357568890,1744181349822,-500.0,0.00043836,120]
[357568891,1744181349858,-500.0,0.00043836,120]
[357568892,1744181349894,-500.0,0.00043836,120]
[357568893,1744181349928,-500.0,0.00043836,120]
[357568894,1744181349964,-500.0,0.00043836,120]
[357568895,1744181350000,-500.0,0.00043836,120]
[357568896,1744181350035,-500.0,0.00043836,120]
[357568897,1744181350072,-500.0,0.00043836,120]
[357568898,1744181350110,-500.0,0.00043836,120]
[357568899,1744181350147,-500.0,0.00043836,120]
[357568900,1744181350184,-572.95002146,0.00043836,120]
[357568901,1744181350218,-500.0,0.00043836,120]
[357568902,1744181350254,-500.0,0.00043836,120]
[357568903,1744181350289,-500.0,0.00043836,120]
[357568904,1744181350480,-500.0,0.00043836,120]
[357568905,1744181350519,-500.0,0.00043836,120]
[357568906,1744181350556,-500.0,0.00043836,120]
[357568907,1744181350593,-500.0,0.00043836,120]
[357568908,1744181350631,-183.01882012,0.00043973,120]
[357568909,1744181350666,-165.56,0.00043997,30]
[357568910,1744181350702,-150.0,0.00043997,30]
[357568911,1744181350737,-150.0,0.00043997,30]
[357568912,1744181350774,-150.0,0.00043997,30]
[357568913,1744181350808,-150.0,0.00043997,30]
[357568914,1744181350844,-150.0,0.00043997,30]
[357568915,1744181350908,-150.0,0.00043997,30]
[357568916,1744181350943,-150.0,0.00043997,30]
[357568917,1744181350980,-388.0,0.00044,120]
[357568918,1744181351025,-183.01882012,0.00044164,120]
[357568919,1744181351063,-183.01882012,0.00044329,120]
[357568920,1744181351109,-183.01882012,0.00044521,120]
[357568921,1744181351144,-61618.52004511,0.00044568,30]
[357568922,1744181351180,-163.49,0.00044628,120]
[357568923,1744181351223,-183.01882012,0.00044685,120]
[357568924,1744181351257,-150.0,0.00044819,30]
[357568925,1744181351293,-183.01882012,0.00044877,120]
[357568926,1744181351329,-934.34,0.000449,120]
[357568927,1744181351364,-151.0,0.00045,120]
[357568928,1744181351399,-1836.6413694,0.00045,46]
[357568929,1744181351433,-151.0,0.00045,120]
[357568930,1744181351468,-158.1885315,0.00045,32]
[357568931,1744181351503,-151.15878272,0.00045,120]
[357568932,1744181351539,-150.0,0.00045,85]
[357568933,1744181351576,-1007.02095654,0.00045,120]
[357568934,1744181351613,-183.01882012,0.00045041,120]
[357568935,1744181351649,-183.01882012,0.00045233,120]
[357568936,1744181351684,-177.0,0.00045308,90]
[357568937,1744181351721,-183.01882012,0.00045397,120]
[357568938,1744181351757,-183.01882012,0.00045589,120]
[357568939,1744181351795,-183.01882012,0.00045753,120]
[357568940,1744181351831,-1000.0,0.000458,120]
[357568941,1744181351864,-183.01882012,0.00045918,120]
[357568942,1744181351899,-1800.0,0.00046,47]
[357568943,1744181351932,-269.94308675,0.00046,30]
[357568944,1744181351968,-500.0,0.00046575,60]
[357568945,1744181352005,-154.22965489,0.00046575,60]
[357568946,1744181352043,-1000.0,0.000468,120]
[357568947,1744181352083,-1177.487,0.00046888,30]
[357568948,1744181352120,-1800.0,0.00047,48]
[357568949,1744181352157,-500.0,0.00047123,60]
[357568950,1744181352194,-1731.31,0.000472,60]
[357568951,1744181352229,-368.0,0.000475,120]
[357568952,1744181352271,-156.68,0.000476,42]
[357568953,1744181352311,-156.68,0.000476,42]
[357568954,1744181352349,-156.68,0.000476,42]
[357568955,1744181352389,-156.68,0.000476,42]
[357568956,1744181352430,-156.68,0.000476,42]
[357568957,1744181352472,-156.68,0.000476,42]
[357568958,1744181352514,-156.68,0.000476,42]
[357568959,1744181352556,-156.68,0.000476,42]
[357568960,1744181352596,-156.68,0.000476,42]
[357568961,1744181352636,-156.68,0.000476,42]
[357568962,1744181352677,-156.68,0.000476,42]
[357568963,1744181352716,-156.68,0.000476,42]
[357568964,1744181352755,-156.68,0.000476,42]
[357568965,1744181352793,-156.68,0.000476,42]
[357568966,1744181352831,-156.68,0.000476,42]
[357568967,1744181352868,-156.68,0.000476,42]
[357568968,1744181352906,-156.68,0.000476,42]
[357568969,1744181352944,-156.68,0.000476,42]
[357568970,1744181352982,-156.68,0.000476,42]
[357568971,1744181353021,-156.68,0.000476,42]
[357568972,1744181353060,-156.68,0.000476,42]
[357568973,1744181353102,-156.68,0.000476,42]
[357568974,1744181353143,-156.68,0.000476,42]
[357568975,1744181353182,-156.68,0.000476,42]
[357568976,1744181353217,-500.0,0.00047671,60]
[357568977,1744181353255,-1300.0,0.00047837,50]
[357568978,1744181353290,-1731.31,0.000479,60]
[357568979,1744181353326,-1800.0,0.00048,49]
[357568980,1744181353363,-500.0,0.00048,30]
[357568981,1744181353397,-1000.10374324,0.00048,120]
[357568982,1744181353434,-352.81174158,0.00048,120]
[357568983,1744181353471,-3000.0,0.00048,120]
[357568984,1744181353508,-150.0,0.000482,120]
[357568985,1744181353545,-500.0,0.00048219,60]
[357568986,1744181353581,-316.09304357,0.000486,120]
[357568987,1744181353618,-1000.0,0.000487,120]
[357568988,1744181353656,-500.0,0.00048767,60]
[357568989,1744181353694,-314986.8392292,0.000488,120]
[357568990,1744181353735,-20116.6430586,0.000488,120]
[357568991,1744181353772,-3832.22207016,0.000488,120]
[357568992,1744181353810,-153.84,0.000489,120]
[357568993,1744181353849,-1731.31,0.000489,60]
[357568994,1744181353887,-1800.0,0.00049,50]
[357568995,1744181354178,-5567.0,0.00049,120]
[357568996,1744181354222,-3545.14,0.00049,120]
[357568997,1744181354269,-35370.78137295,0.00049,120]
[357568998,1744181354314,-726.3111898,0.00049,120]
[357568999,1744181354353,-2201.7097665,0.00049,50]
[357569000,1744181354391,-12000.0,0.00049,45]
[357569001,1744181354431,-163.49,0.00049106,120]
[357569002,1744181354470,-470.0,0.000492,120]
[357569003,1744181354509,-500.0,0.00049315,60]
[357569004,1744181354549,-500.0,0.00049315,120]
[357569005,1744181354590,-350.0,0.00049315,30]
[357569006,1744181354630,-565.81,0.00049315,120]
[357569007,1744181354671,-565.81,0.00049315,120]
[357569008,1744181354711,-565.81,0.00049315,120]
[357569009,1744181354749,-565.81,0.00049315,120]
[357569010,1744181354790,-565.81,0.00049315,120]
[357569011,1744181354830,-565.81,0.00049315,120]
[357569012,1744181354869,-565.81,0.00049315,120]
[357569013,1744181354909,-565.81,0.00049315,120]
[357569014,1744181354948,-565.81,0.00049315,120]
[357569015,1744181354989,-565.81,0.00049315,120]
[357569016,1744181355030,-565.81,0.00049315,120]
[357569017,1744181355070,-565.81,0.00049315,120]
[357569018,1744181355111,-565.81,0.00049315,120]
[357569019,1744181355150,-565.81,0.00049315,120]
[357569020,1744181355191,-565.81,0.00049315,120]
[357569021,1744181355232,-565.81,0.00049315,120]
[357569022,1744181355272,-565.81,0.00049315,120]
[357569023,1744181355313,-565.81,0.00049315,120]
[357569024,1744181355354,-565.81,0.00049315,120]
[357569025,1744181355394,-565.81,0.00049315,120]
[357569026,1744181355435,-565.81,0.00049315,120]
[357569027,1744181355477,-565.81,0.00049315,120]
[357569028,1744181355517,-565.81,0.00049315,120]
[357569029,1744181355558,-565.95438441,0.00049315,120]
[357569030,1744181355598,-510.91066937,0.00049315,120]
[357569031,1744181355639,-500.0,0.00049315,120]
[357569032,1744181355679,-500.0,0.00049315,120]
[357569033,1744181355720,-500.0,0.00049315,120]
[357569034,1744181355761,-500.0,0.00049315,120]
[357569035,1744181355801,-500.0,0.00049315,120]
[357569036,1744181355844,-417.2860009,0.00049315,120]
[357569037,1744181355885,-500.0,0.00049315,120]
[357569038,1744181355925,-500.0,0.00049315,120]
[357569039,1744181355966,-500.0,0.00049315,120]
[357569040,1744181356006,-500.0,0.00049315,120]
[357569041,1744181356047,-500.0,0.00049315,120]
[357569042,1744181356090,-500.0,0.00049315,120]
[357569043,1744181356131,-500.0,0.00049315,120]
[357569044,1744181356172,-500.0,0.00049315,120]
[357569045,1744181356212,-500.0,0.00049315,120]
[357569046,1744181356254,-500.0,0.00049315,120]
[357569047,1744181356294,-500.0,0.00049315,120]
[357569048,1744181356337,-500.0,0.00049315,120]
[357569049,1744181356376,-500.0,0.00049315,120]
[357569050,1744181356416,-500.0,0.00049315,120]
[357569051,1744181356457,-500.0,0.00049315,120]
[357569052,1744181356498,-500.0,0.00049315,120]
[357569053,1744181356539,-500.0,0.00049315,120]
[357569054,1744181356580,-500.0,0.00049315,120]
[357569055,1744181356622,-500.0,0.00049315,120]
[357569056,1744181356662,-500.0,0.00049315,120]
[357569057,1744181356704,-500.0,0.00049315,120]
[357569058,1744181356745,-500.0,0.00049315,120]
[357569059,1744181356784,-500.0,0.00049315,120]
[357569060,1744181356822,-500.0,0.00049315,120]
[357569061,1744181356863,-500.0,0.00049315,120]
[357569062,1744181356902,-500.0,0.00049315,120]
[357569063,1744181356941,-500.0,0.00049315,120]
[357569064,1744181356980,-500.0,0.00049315,120]
[357569065,1744181357020,-500.0,0.00049315,120]
[357569066,1744181357106,-500.0,0.00049315,120]
[357569067,1744181357150,-500.0,0.00049315,120]
[357569068,1744181357191,-500.0,0.00049315,120]
[357569069,1744181357230,-500.0,0.00049315,120]
[357569070,1744181357269,-500.0,0.00049315,120]
[357569071,1744181357308,-500.0,0.00049315,120]
[357569072,1744181357346,-500.0,0.00049315,120]
[357569073,1744181357384,-500.0,0.00049315,120]
[357569074,1744181357424,-500.0,0.00049315,120]
[357569075,1744181357462,-500.0,0.00049315,120]
[357569076,1744181357502,-500.0,0.00049315,120]
[357569077,1744181357542,-500.0,0.00049315,120]
[357569078,1744181357583,-500.0,0.00049315,120]
[357569079,1744181357622,-500.0,0.00049315,120]
[357569080,1744181357662,-500.0,0.00049315,120]
[357569081,1744181357702,-500.0,0.00049315,120]
[357569082,1744181357743,-500.0,0.00049315,120]
[357569083,1744181357782,-500.0,0.00049315,120]
[357569084,1744181357819,-500.0,0.00049315,120]
[357569085,1744181357859,-500.0,0.00049315,120]
[357569086,1744181357899,-500.0,0.00049315,120]
[357569087,1744181357937,-500.0,0.00049315,120]
[357569088,1744181357976,-500.0,0.00049315,120]
[357569089,1744181358016,-500.0,0.00049315,120]
[357569090,1744181358057,-500.0,0.00049315,120]
[357569091,1744181358103,-500.0,0.00049315,120]
[357569092,1744181358146,-500.0,0.00049315,120]
[357569093,1744181358186,-465.02344455,0.00049315,120]
[357569094,1744181358225,-500.0,0.00049315,120]
[357569095,1744181358264,-500.0,0.00049315,120]
[357569096,1744181358305,-500.0,0.00049315,120]
[357569097,1744181358344,-500.0,0.00049315,120]
[357569098,1744181358385,-500.0,0.00049315,120]
[357569099,1744181358426,-500.0,0.00049315,120]
[357569100,1744181358467,-500.0,0.00049315,120]
[357569101,1744181358507,-500.0,0.00049315,120]
[357569102,1744181358548,-199.99999999,0.00049315,120]
[357569103,1744181358590,-500.0,0.00049315,120]
[357569104,1744181358630,-500.0,0.00049315,120]
[357569105,1744181358671,-500.0,0.00049315,120]
[357569106,1744181358711,-500.0,0.00049315,120]
[357569107,1744181358751,-500.0,0.00049315,120]
[357569108,1744181358790,-500.0,0.00049315,120]
[357569109,1744181358829,-500.0,0.00049315,120]
[357569110,1744181358870,-500.0,0.00049315,120]
[357569111,1744181358909,-500.0,0.00049315,120]
[357569112,1744181358948,-500.0,0.00049315,120]
[357569113,1744181358988,-500.0,0.00049315,120]
[357569114,1744181359029,-604.71202734,0.00049315,120]
[357569115,1744181359072,-500.0,0.00049315,120]
[357569116,1744181359113,-500.0,0.00049315,120]
[357569117,1744181359154,-500.0,0.00049315,120]
[357569118,1744181359195,-500.0,0.00049315,120]
[357569119,1744181359236,-200.0,0.00049315,120]
[357569120,1744181359277,-500.0,0.00049315,120]
[357569121,1744181359317,-999.0,0.00049315,120]
[357569122,1744181359359,-162.71071675,0.0004932,120]
[357569123,1744181359397,-162.71071675,0.0004932,120]
[357569124,1744181359433,-162.71071675,0.0004932,120]
[357569125,1744181359472,-162.71071675,0.0004932,120]
[357569126,1744181359510,-162.71071675,0.0004932,120]
[357569127,1744181359548,-162.71071675,0.0004932,120]
[357569128,1744181359585,-162.71071675,0.0004932,120]
[357569129,1744181359623,-162.71071675,0.0004932,120]
[357569130,1744181359659,-162.71,0.0004932,120]
[357569131,1744181359696,-170.84625259,0.0004932,120]
[357569132,1744181359733,-170.84625259,0.0004932,120]
[357569133,1744181359770,-170.84625259,0.0004932,120]
[357569134,1744181359807,-170.84625259,0.0004932,120]
[357569135,1744181359843,-170.84625259,0.0004932,120]
[357569136,1744181359878,-170.84625259,0.0004932,120]
[357569137,1744181359915,-170.84625259,0.0004932,120]
[357569138,1744181359950,-170.84625259,0.0004932,120]
[357569139,1744181359987,-170.84625259,0.0004932,120]
[357569140,1744181360025,-170.84625259,0.0004932,120]
[357569141,1744181360065,-170.84625259,0.0004932,120]
[357569142,1744181360102,-170.84625259,0.0004932,120]
[357569143,1744181360140,-170.84625259,0.0004932,120]
[357569144,1744181360178,-170.84625259,0.0004932,120]
[357569145,1744181360215,-170.84625259,0.0004932,120]
[357569146,1744181360250,-170.84625259,0.0004932,120]
[357569147,1744181360285,-170.84625259,0.0004932,120]
[357569148,1744181360320,-170.84625259,0.0004932,120]
[357569149,1744181360356,-170.84625259,0.0004932,120]
[357569150,1744181360393,-170.84,0.0004932,120]
[357569151,1744181360432,-175.53498431,0.0004932,120]
[357569152,1744181360473,-175.53498431,0.0004932,120]
[357569153,1744181360513,-175.53498431,0.0004932,120]
[357569154,1744181360555,-175.53498431,0.0004932,120]
[357569155,1744181360600,-175.53498431,0.0004932,120]
[357569156,1744181360639,-175.53498431,0.0004932,120]
[357569157,1744181360676,-175.53498431,0.0004932,120]
[357569158,1744181360715,-175.53498431,0.0004932,120]
[357569159,1744181360754,-175.53498431,0.0004932,120]
[357569160,1744181360792,-175.53498431,0.0004932,120]
[357569161,1744181360829,-175.53498431,0.0004932,120]
[357569162,1744181360871,-175.53498431,0.0004932,120]
[357569163,1744181360909,-175.53498431,0.0004932,120]
[357569164,1744181360946,-175.53498431,0.0004932,120]
[357569165,1744181360981,-175.53498431,0.0004932,120]
[357569166,1744181361016,-175.53498431,0.0004932,120]
[357569167,1744181361050,-175.53498431,0.0004932,120]
[357569168,1744181361092,-175.53498431,0.0004932,120]
[357569169,1744181361127,-175.53498431,0.0004932,120]
[357569170,1744181361164,-175.53,0.0004932,120]
[357569171,1744181361199,-409.58163006,0.0004932,120]
[357569172,1744181361395,-409.58163006,0.0004932,120]
[357569173,1744181361435,-409.58163006,0.0004932,120]
[357569174,1744181361476,-409.58163006,0.0004932,120]
[357569175,1744181361513,-409.58163006,0.0004932,120]
[357569176,1744181361551,-409.58163006,0.0004932,120]
[357569177,1744181361589,-409.58163006,0.0004932,120]
[357569178,1744181361632,-409.58163006,0.0004932,120]
[357569179,1744181361670,-409.58163006,0.0004932,120]
[357569180,1744181361708,-409.58163006,0.0004932,120]
[357569181,1744181361747,-409.58163006,0.0004932,120]
[357569182,1744181361787,-409.58163006,0.0004932,120]
[357569183,1744181361826,-409.58163006,0.0004932,120]
[357569184,1744181361865,-409.58163006,0.0004932,120]
[357569185,1744181361903,-409.58163006,0.0004932,120]
[357569186,1744181361943,-409.58163006,0.0004932,120]
[357569187,1744181361983,-409.58163006,0.0004932,120]
[357569188,1744181362022,-409.58163006,0.0004932,120]
[357569189,1744181362061,-409.58163006,0.0004932,120]
[357569190,1744181362104,-409.58,0.0004932,120]
[357569191,1744181362144,-196.98271075,0.0004932,120]
[357569192,1744181362183,-906.43656595,0.00049396,120]
[357569193,1744181362220,-1731.31,0.000495,60]
[357569194,1744181362258,-300.0,0.000497,120]
[357569195,1744181362298,-79911.2088,0.0004979,120]
[357569196,1744181362336,-100000.0,0.000498,120]
[357569197,1744181362376,-1000.0,0.000498,120]
[357569198,1744181362417,-240.59411374,0.000498,120]
[357569199,1744181362459,-150.0,0.00049852,120]
[357569200,1744181362498,-536.71929048,0.00049863,60]
[357569201,1744181362538,-500.0,0.00049863,120]
[357569202,1744181362578,-170.97106349,0.000499,38]
[357569203,1744181362619,-669.827,0.00049913,88]
[357569204,1744181362660,-77608.05118487,0.0004999,60]
[357569205,1744181362701,-1000.0,0.00049998,120]
[357569206,1744181362740,-377.85871327,0.00049999,31]
[357569207,1744181362780,-461.42068466,0.00049999,120]
[357569208,1744181362818,-458.68788281,0.00049999,120]
[357569209,1744181362855,-388.21124434,0.00049999,120]
[357569210,1744181362897,-500.0,0.00049999,120]
[357569211,1744181362934,-500.0,0.00049999,120]
[357569212,1744181362972,-192.12489521,0.00049999,120]
[357569213,1744181363009,-547.04950245,0.00049999,120]
[357569214,1744181363047,-547.04950245,0.00049999,120]
[357569215,1744181363089,-547.04950245,0.00049999,120]
[357569216,1744181363129,-547.04950245,0.00049999,120]
[357569217,1744181363169,-547.04950245,0.00049999,120]
[357569218,1744181363206,-547.04950245,0.00049999,120]
[357569219,1744181363245,-547.04950245,0.00049999,120]
[357569220,1744181363281,-547.04950245,0.00049999,120]
[357569221,1744181363319,-547.04950245,0.00049999,120]
[357569222,1744181363358,-547.04950245,0.00049999,120]
[357569223,1744181363396,-547.04950245,0.00049999,120]
[357569224,1744181363437,-547.04950245,0.00049999,120]
[357569225,1744181363477,-547.04950245,0.00049999,120]